fUST/lending_fUST_20240124
["ID","MTS","AMOUNT","RATE_DAILY","PERIOD"]
[312612206,1706085046619,-500.0,0.00040273,7]
[312612207,1706085046629,-500.0,0.00040273,7]
[312612208,1706085046639,-1000.0,0.00040273,2]
[312612209,1706085046648,-500.0,0.00040273,7]
[312612210,1706085046658,-500.0,0.00040273,7]
[312612211,1706085046668,-500.0,0.00040273,7]
[312612212,1706085046678,-579.5291589,0.00040273,7]
[312612213,1706085046690,-1000.0,0.00040273,2]
[312612214,1706085046700,-500.0,0.00040408,2]
[312612215,1706085046710,-500.0,0.00040545,7]
[312612216,1706085046719,-500.0,0.00040545,7]
[312612217,1706085046728,-507.4,0.00040545,7]
[312612218,1706085046737,-500.0,0.00040545,7]
[312612219,1706085046746,-500.0,0.00040545,7]
[312612220,1706085046756,-550.48974869,0.00040545,2]
[312612221,1706085046765,-570.97,0.00040545,7]
[312612222,1706085046775,-500.0,0.00040546,7]
[312612223,1706085046784,-961.18,0.00040546,7]
[312612224,1706085046793,-500.0,0.00040546,7]
[312612225,1706085046803,-500.0,0.00040546,7]
[312612226,1706085046814,-582.81,0.00040546,7]
[312612227,1706085046824,-500.0,0.00040546,7]
[312612228,1706085046833,-3546.57,0.00040546,7]
[312612229,1706085046843,-500.0,0.00040546,7]
[312612230,1706085046853,-500.0,0.00040546,7]
[312612231,1706085046862,-725.87,0.00040546,7]
[312612232,1706085046872,-500.0,0.00040546,7]
[312612233,1706085046881,-500.0,0.00040546,7]
[312612234,1706085046891,-500.0,0.00040547,7]
[312612235,1706085046901,-802.32,0.00040547,7]
[312612236,1706085046911,-500.0,0.00040547,7]
[312612237,1706085046920,-500.0,0.00040547,7]
[312612238,1706085046929,-1000.0,0.00040547,2]
[312612239,1706085046939,-500.0,0.00040547,7]
[312612240,1706085046948,-500.0,0.00040547,7]
[312612241,1706085046958,-500.0,0.00040547,7]
[312612242,1706085046967,-1000.0,0.00040547,2]
[312612243,1706085046976,-500.0,0.00040819,7]
[312612244,1706085046986,-500.0,0.00040819,7]
[312612245,1706085046996,-507.4,0.00040819,7]
[312612246,1706085047005,-500.0,0.00040819,7]
[312612247,1706085047015,-500.0,0.00040819,7]
[312612248,1706085047025,-570.97,0.00040819,7]
[312612249,1706085047034,-500.0,0.0004082,7]
[312612250,1706085047043,-961.18,0.0004082,7]
[312612251,1706085047052,-500.0,0.0004082,7]
[312612252,1706085047062,-500.0,0.0004082,7]
[312612253,1706085047071,-582.81,0.0004082,7]
[312612254,1706085047080,-500.0,0.0004082,7]
[312612255,1706085047089,-3546.57,0.0004082,7]
[312612256,1706085047098,-500.0,0.0004082,7]
[312612257,1706085047108,-500.0,0.0004082,7]
[312612258,1706085047118,-725.87,0.0004082,7]
[312612259,1706085047127,-500.0,0.0004082,7]
[312612260,1706085047136,-500.0,0.0004082,7]
[312612261,1706085047145,-500.0,0.00040821,7]
[312612262,1706085047155,-802.32,0.00040821,7]
[312612263,1706085047164,-500.0,0.00040821,7]
[312612264,1706085047173,-500.0,0.00040821,7]
[312612265,1706085047183,-1000.0,0.00040821,2]
[312612266,1706085047192,-500.0,0.00040821,7]
[312612267,1706085047201,-500.0,0.00040821,7]
[312612268,1706085047211,-500.0,0.00040821,7]
[312612269,1706085047222,-1000.0,0.00040821,2]
[312612270,1706085047231,-507.4,0.00041093,31]
[312612271,1706085047241,-500.0,0.00041093,31]
[312612272,1706085047250,-500.0,0.00041093,31]
[312612273,1706085047259,-570.97,0.00041093,31]
[312612274,1706085047268,-3546.57,0.00041094,14]
[312612275,1706085047277,-637.73913149,0.00041094,31]
[312612276,1706085047288,-500.0,0.00041094,31]
[312612277,1706085047296,-725.87,0.00041094,31]
[312612278,1706085047306,-500.0,0.00041094,31]
[312612279,1706085047315,-500.0,0.00041094,31]
[312612280,1706085047324,-500.0,0.00041095,2]
[312612281,1706085047335,-1000.0,0.00041095,2]
[312612282,1706085047345,-779.48423707,0.00041095,2]
[312612283,1706085047354,-164.979449,0.00041096,2]
[312612284,1706085047364,-7691.57837474,0.00041233,5]
[312612285,1706085047373,-507.4,0.00041367,31]
[312612286,1706085047382,-500.0,0.00041367,31]
[312612287,1706085047392,-500.0,0.00041367,31]
[312612288,1706085047401,-570.97,0.00041367,31]
[312612289,1706085047411,-3546.57,0.00041368,14]
[312612290,1706085047420,-500.0,0.00041368,31]
[312612291,1706085047429,-725.87,0.00041368,31]
[312612292,1706085047438,-500.0,0.00041368,31]
[312612293,1706085047447,-649.63678474,0.00041368,31]
[312612294,1706085047456,-1000.0,0.00041369,2]
[312612295,1706085047466,-507.4,0.00041641,31]
[312612296,1706085047476,-500.0,0.00041641,31]
[312612297,1706085047484,-500.0,0.00041641,31]
[312612298,1706085047496,-570.97,0.00041641,31]
[312612299,1706085047505,-3546.57,0.00041642,14]
[312612300,1706085047513,-500.0,0.00041642,31]
[312612301,1706085047523,-725.87,0.00041642,31]
[312612302,1706085047532,-500.0,0.00041642,31]
[312612303,1706085047541,-204.72585364,0.00041643,2]
[312612304,1706085047551,-507.4,0.00041915,31]
[312612305,1706085047561,-500.0,0.00041915,31]
[312612306,1706085047571,-500.0,0.00041915,31]
[312612307,1706085047583,-570.97,0.00041915,31]
[312612308,1706085047593,-3546.57,0.00041916,14]
[312612309,1706085047603,-500.0,0.00041916,31]
[312612310,1706085047614,-725.87,0.00041916,31]
[312612311,1706085047624,-500.0,0.00041916,31]
[312612312,1706085047633,-187.40617333,0.00042,2]
[312612313,1706085047643,-507.4,0.00042189,31]
[312612314,1706085047652,-500.0,0.00042189,31]
[312612315,1706085047661,-500.0,0.00042189,31]
[312612316,1706085047672,-570.97,0.00042189,31]
[312612317,1706085047683,-3546.57,0.0004219,14]
[312612318,1706085047693,-500.0,0.0004219,31]
[312612319,1706085047703,-725.87,0.0004219,31]
[312612320,1706085047714,-500.0,0.0004219,31]
[312612321,1706085047725,-507.4,0.00042463,31]
[312612322,1706085047734,-632.62552354,0.00042463,31]
[312612323,1706085047746,-500.0,0.00042463,31]
[312612324,1706085047754,-570.97,0.00042463,31]
[312612325,1706085047764,-2197.30817126,0.00042464,2]
[312612326,1706085047773,-3546.57,0.00042464,14]
[312612327,1706085047783,-500.0,0.00042464,31]
[312612328,1706085047792,-725.87,0.00042464,31]
[312612329,1706085047801,-500.0,0.00042464,31]
[312612330,1706085047810,-160.0,0.00042514,3]
[312612331,1706085047820,-682.3767278,0.00042568,4]
[312612332,1706085047830,-507.4,0.00042737,31]
[312612333,1706085047839,-624.19113433,0.00042737,31]
[312612334,1706085047848,-570.97,0.00042737,31]
[312612335,1706085047857,-3546.57,0.00042738,14]
[312612336,1706085047866,-500.0,0.00042738,31]
[312612337,1706085047876,-725.87,0.00042738,31]
[312612338,1706085047885,-500.0,0.00042738,31]
[312612339,1706085047894,-215.74224823,0.0004297,7]
[312612340,1706085047904,-2073.50516209,0.00042997,4]
[312612341,1706085047913,-4723.24260277,0.00042997,4]
[312612342,1706085047922,-4440.07568412,0.00042997,2]
[312612343,1706085047932,-2102.56602861,0.00042997,4]
[312612344,1706085047941,-6602.86978669,0.00042998,4]
[312612345,1706085047950,-1266.7890629,0.00042998,4]
[312612346,1706085047959,-154.86062544,0.00042998,4]
[312612347,1706085047968,-4230.09528616,0.00042998,4]
[312612348,1706085047978,-179.23816071,0.00042998,4]
[312612349,1706085047987,-321.63259873,0.00042998,4]
[312612350,1706085047997,-588.60320162,0.00042998,4]
[312612351,1706085048007,-746.36797904,0.00042998,4]
[312612352,1706085048016,-202.89749106,0.00042998,2]
[312612353,1706085048025,-243.97478798,0.00042998,4]
[312612354,1706085048035,-680.34024047,0.00042998,4]
[312612355,1706085048044,-154.86062544,0.00042998,4]
[312612356,1706085048053,-333.41959203,0.00042998,4]
[312612357,1706085048062,-640.41019443,0.00042998,4]
[312612358,1706085048071,-155.09253296,0.00042998,4]
[312612359,1706085048081,-231.21398044,0.00042998,4]
[312612360,1706085048093,-155.94409847,0.00042998,4]
[312612361,1706085048103,-242.61355596,0.00042998,4]
[312612362,1706085048112,-426.91284599,0.00042998,2]
[312612363,1706085048122,-154.9690062,0.00042998,4]
[312612364,1706085048132,-324.31744966,0.00042998,4]
[312612365,1706085048141,-213.4438283,0.00042998,4]
[312612366,1706085048150,-351.9154441,0.00042998,4]
[312612367,1706085048159,-295.32518756,0.00042998,4]
[312612368,1706085048168,-160.88947771,0.00042998,4]
[312612369,1706085048178,-3969.08835529,0.00042998,4]
[312612370,1706085048187,-2861.92750442,0.00042998,4]
[312612371,1706085048197,-3761.76919193,0.00042998,4]
[312612372,1706085048207,-4813.00638666,0.00042998,4]
[312612373,1706085048216,-7381.29040931,0.00042998,4]
[312612374,1706085048225,-1417.41072532,0.00042999,5]
[312612375,1706085048234,-162.26,0.00042999,7]
[312612376,1706085048244,-162.26,0.00042999,7]
[312612377,1706085048253,-162.26,0.00042999,7]
[312612378,1706085048262,-162.26,0.00042999,7]
[312612379,1706085048272,-162.26,0.00042999,7]
[312612380,1706085048281,-162.26,0.00042999,7]
[312612381,1706085048290,-162.26,0.00042999,7]
[312612382,1706085048300,-162.26,0.00042999,7]
[312612383,1706085048309,-500.0,0.00042999,60]
[312612384,1706085048318,-500.0,0.00042999,60]
[312612385,1706085048327,-500.0,0.00042999,60]
[312612386,1706085048335,-500.0,0.00042999,60]
[312612387,1706085048344,-500.0,0.00042999,60]
[312612388,1706085048353,-500.0,0.00042999,60]
[312612389,1706085048362,-500.0,0.00042999,60]
[312612390,1706085048371,-500.0,0.00042999,60]
[312612391,1706085048380,-500.0,0.00042999,60]
[312612392,1706085048389,-500.0,0.00042999,60]
[312612393,1706085048398,-500.0,0.00042999,60]
[312612394,1706085048407,-500.0,0.00042999,60]
[312612395,1706085048416,-500.0,0.00042999,60]
[312612396,1706085048425,-500.0,0.00042999,60]
[312612397,1706085048434,-500.0,0.00042999,60]
[312612398,1706085048443,-500.0,0.00042999,60]
[312612399,1706085048451,-500.0,0.00042999,60]
[312612400,1706085048461,-500.0,0.00042999,60]
[312612401,1706085048470,-500.0,0.00042999,60]
[312612402,1706085048479,-500.0,0.00042999,60]
[312612403,1706085048489,-500.0,0.00042999,60]
[312612404,1706085048500,-500.0,0.00042999,60]
[312612405,1706085048510,-500.0,0.00042999,60]
[312612406,1706085048519,-500.0,0.00042999,60]
[312612407,1706085048530,-500.0,0.00042999,60]
[312612408,1706085048541,-500.0,0.00042999,60]
[312612409,1706085048551,-500.0,0.00042999,60]
[312612410,1706085048560,-500.0,0.00042999,60]
[312612411,1706085048569,-500.0,0.00042999,60]
[312612412,1706085048579,-500.0,0.00042999,60]
[312612413,1706085048590,-500.0,0.00042999,60]
[312612414,1706085048601,-500.0,0.00042999,60]
[312612415,1706085048611,-500.0,0.00042999,60]
[312612416,1706085048621,-500.0,0.00042999,60]
[312612417,1706085048631,-500.0,0.00042999,60]
[312612418,1706085048641,-500.0,0.00042999,60]
[312612419,1706085048651,-500.0,0.00042999,60]
[312612420,1706085048661,-500.0,0.00042999,60]
[312612421,1706085048671,-500.0,0.00042999,60]
[312612422,1706085048680,-500.0,0.00042999,60]
[312612423,1706085048692,-504.41671153,0.00042999,60]
[312612424,1706085048702,-500.0,0.00042999,60]
[312612425,1706085048711,-500.0,0.00042999,60]
[312612426,1706085048720,-500.0,0.00042999,60]
[312612427,1706085048731,-500.0,0.00042999,60]
[312612428,1706085048741,-500.0,0.00042999,60]
[312612429,1706085048750,-500.0,0.00042999,60]
[312612430,1706085048838,-500.0,0.00042999,60]
[312612431,1706085048848,-500.0,0.00042999,60]
[312612432,1706085048859,-500.0,0.00042999,60]
[312612433,1706085048868,-500.0,0.00042999,60]
[312612434,1706085048877,-500.0,0.00042999,60]
[312612435,1706085048886,-500.0,0.00042999,60]
[312612436,1706085048895,-500.0,0.00042999,60]
[312612437,1706085048905,-97791.61818562,0.00043,5]
[312612438,1706085048914,-500000.0,0.00043,6]
[312612439,1706085048924,-500000.0,0.00043,7]
[312612440,1706085048932,-240913.7126,0.00043,8]
[312612441,1706085048942,-1000.0,0.00043,7]
[312612442,1706085048951,-1000.0,0.00043,5]
[312612443,1706085048960,-1000.0,0.00043,5]
[312612444,1706085048969,-208.88,0.00043,4]
[312612445,1706085048978,-471.58104,0.00043,7]
[312612446,1706085048987,-471.58104,0.00043,7]
[312612447,1706085048997,-471.58104,0.00043,7]
[312612448,1706085049006,-471.58104,0.00043,7]
[312612449,1706085049014,-500.0,0.00043,7]
[312612450,1706085049024,-507.4,0.00043011,31]
[312612451,1706085049033,-570.97,0.00043011,31]
[312612452,1706085049043,-3546.57,0.00043012,14]
[312612453,1706085049052,-500.0,0.00043012,31]
[312612454,1706085049062,-725.87,0.00043012,31]
[312612455,1706085049071,-500.0,0.00043012,31]
[312612456,1706085049080,-200.0,0.000431,18]
[312612457,1706085049089,-160.0,0.00043147,4]
[312612458,1706085049099,-151.89300709,0.00043189,60]
[312612459,1706085049110,-250.0,0.00043199,7]
[312612460,1706085049119,-250.0,0.00043199,14]
[312612461,1706085049128,-250.0,0.00043199,21]
[312612462,1706085049137,-250.0,0.00043199,28]
[312612463,1706085049146,-507.4,0.00043285,31]
[312612464,1706085049155,-570.97,0.00043285,31]
[312612465,1706085049163,-3546.57,0.00043286,14]
[312612466,1706085049172,-500.0,0.00043286,31]
[312612467,1706085049181,-725.87,0.00043286,31]
[312612468,1706085049190,-500.0,0.00043286,31]
[312612469,1706085049199,-1456.60044352,0.0004339,2]
[312612470,1706085049209,-1306.55,0.000434,2]
[312612471,1706085049219,-471.58104,0.00043403,7]
[312612472,1706085049227,-471.58104,0.00043403,7]
[312612473,1706085049236,-471.58104,0.00043403,7]
[312612474,1706085049245,-471.58104,0.00043403,7]
[312612475,1706085049254,-471.58104,0.00043403,7]
[312612476,1706085049263,-471.58104,0.00043403,7]
[312612477,1706085049272,-471.58104,0.00043403,7]
[312612478,1706085049281,-471.58104,0.00043403,7]
[312612479,1706085049291,-471.58104,0.00043403,7]
[312612480,1706085049299,-471.58104,0.00043403,7]
[312612481,1706085049309,-471.58104,0.00043403,7]
[312612482,1706085049318,-471.58104,0.00043403,7]
[312612483,1706085049327,-471.58104,0.00043403,7]
[312612484,1706085049336,-471.58104,0.00043403,7]
[312612485,1706085049345,-471.58104,0.00043403,7]
[312612486,1706085049353,-471.581042,0.00043403,7]
[312612487,1706085049363,-1384.96045503,0.00043405,4]
[312612488,1706085049372,-150.0,0.00043406,2]
[312612489,1706085049381,-150.77953428,0.00043406,2]
[312612490,1706085049390,-185930.76399858,0.00043406,7]
[312612491,1706085049399,-763985.11047955,0.00043406,7]
[312612492,1706085049408,-212584.82441083,0.00043406,7]
[312612493,1706085049417,-107535.00922813,0.00043406,7]
[312612494,1706085049426,-143606.22262822,0.00043406,7]
[312612495,1706085049435,-1486536.37539022,0.00043406,7]
[312612666,1706085552161,463.55294185,0.00023859,20]
[312612668,1706086050185,-449.39938875,0.00022838,2]
[312612707,1706086231993,-486.03262571,0.00022087,2]
[312612897,1706087119811,1697.28329769,0.00019987,2]
[312613519,1706087190895,1114.82223446,0.00019987,2]
[312613591,1706087210893,1114.82223446,0.00019987,2]
[312613668,1706087230900,950.30054743,0.00019987,2]
[312613669,1706087247087,-237.74153663,0.00020467,2]
[312613670,1706087247108,-1352.50478764,0.00020467,2]
[312613850,1706087354122,-619.599095,0.00020465,2]
[312613851,1706087354143,-5210.1860001,0.00020466,2]
[312613852,1706087354164,-1463.49789118,0.00020467,2]
[312613853,1706087354188,-2084.95173309,0.00020467,2]
[312613854,1706087354207,-372.113563,0.00020471,2]
[312613855,1706087354229,-8775.8582838,0.00020881,2]
[312613856,1706087354250,-3639.69491053,0.00021,2]
[312613885,1706087432163,-346.18174268,0.00020467,2]
[312613908,1706087438166,-1479.78157531,0.00020467,2]
[312613909,1706087438176,-49.33078656,0.00021,2]
[312613910,1706087438185,-1583.8500325,0.00021159,2]
[312613911,1706087438195,-977.81939146,0.00021472,2]
[312613912,1706087438204,-619.599095,0.00022829,2]
[312613913,1706087438214,-157.70067308,0.0002283,2]
[312613914,1706087438224,-5210.1860001,0.00022849,2]
[312613915,1706087438233,-124.58196887,0.00022849,2]
[312613916,1706087438253,-2691.42070995,0.00022849,2]
[312613917,1706087438263,-2093.31780846,0.0002285,2]
[312613950,1706087443207,-3325.96844202,0.0002285,2]
[312613952,1706087443216,-3502.5047125,0.00022852,2]
[312613954,1706087443226,-6244.01167445,0.00022854,2]
[312614005,1706087446329,-663.62770952,0.00022854,2]
[312614006,1706087446341,-1313.37229048,0.00022854,2]
[312614007,1706087446353,-2180.35338264,0.00022854,2]
[312614008,1706087446362,-169.37825405,0.00023858,2]
[312614009,1706087446372,-832.15973385,0.00023858,2]
[312614010,1706087446381,-155.09219294,0.00023858,2]
[312614011,1706087446391,-262.19709632,0.00023858,2]
[312614012,1706087446401,-301.77611122,0.00023858,2]
[312614013,1706087446411,-300.0,0.00023859,2]
[312614014,1706087446422,-154.98450155,0.00023859,2]
[312614015,1706087446434,-155.17572857,0.00023859,2]
[312614016,1706087446444,-574.63018738,0.00023859,2]
[312614017,1706087446454,-1000.0,0.00023859,3]
[312614018,1706087446465,-2893.6,0.0002387,3]
[312614019,1706087446475,-256.60435933,0.0002387,3]
[312614026,1706088412092,-154.92495324,0.00021736,2]
[312614601,1706088920552,462.24755783,0.00023894,20]
[312614602,1706088950904,462.74793695,0.00023894,20]
[312614603,1706088970665,1529.99,0.0002199,3]
[312614604,1706088982551,633.79484515,0.0002199,3]
[312614605,1706089009589,2710.21337686,0.00020731,5]
[312614606,1706089015429,977.81939146,0.00019557,2]
[312614607,1706089029638,1414.62297093,0.00023893,5]
[312614608,1706089221986,4983.2102305,0.00019832,2]
[312614609,1706089422253,186.056781,0.00019181,2]
[312614610,1706089647096,-449.39938875,0.00020079,2]
[312614611,1706089752081,-561.77353058,0.00020069,2]
[312614612,1706089752102,-19706.16354589,0.0002007,2]
[312614613,1706089752122,-154.86062544,0.0002007,2]
[312614614,1706089752143,-4815.22334348,0.00020071,2]
[312614615,1706089752163,-1741.4785695,0.00020072,2]
[312614616,1706089752187,-619.599095,0.00020073,2]
[312614617,1706089752207,-237.74153663,0.00020073,2]
[312614618,1706089752228,-5404.99554475,0.00020073,2]
[312614619,1706089752248,-4478.34998233,0.00020073,2]
[312614620,1706089758091,-565.87383898,0.00020068,2]
[312614621,1706089758111,-731.83601777,0.00020073,2]
[312614622,1706089758131,-1253.78104744,0.00020074,2]
[312614623,1706089758154,-166.98967161,0.00020095,2]
[312614624,1706089758173,-2104.07287401,0.0002017,2]
[312614625,1706089758194,-2987.143945,0.00020185,2]
[312614626,1706089758213,-2987.143945,0.00020185,2]
[312614627,1706089758233,-6051.72702476,0.00020192,2]
[312614628,1706089758344,-534.38837,0.00020193,2]
[312614629,1706089758367,-534.38837,0.00020193,2]
[312614630,1706089758387,-2987.143945,0.00020193,2]
[312614631,1706089758406,-2987.143945,0.00020193,2]
[312614632,1706089758425,-151.0,0.00020195,2]
[312614633,1706089758445,-4654.26434233,0.00020195,2]
[312614634,1706089765117,-1445.17350617,0.00020194,2]
[312614635,1706089765138,-534.38837,0.00020195,2]
[312614636,1706089765159,-534.38837,0.00020195,2]
[312614637,1706089765183,-534.38837,0.00020195,2]
[312614638,1706089765206,-534.38837,0.00020195,2]
[312614639,1706089765226,-2987.143945,0.00020195,2]
[312614640,1706089765247,-2987.143945,0.00020195,2]
[312614641,1706089765268,-2987.143945,0.00020195,2]
[312614642,1706089765287,-2987.143945,0.00020195,2]
[312614643,1706089765308,-151.671708,0.00020195,2]
[312614644,1706089765327,-8342.134091,0.00020195,2]
[312614645,1706089765347,-534.38837,0.00020195,2]
[312614646,1706089765369,-534.38837,0.00020195,2]
[312614647,1706089765391,-534.38837,0.00020195,2]
[312614648,1706089765413,-534.38837,0.00020195,2]
[312614649,1706089765435,-2987.143945,0.00020195,2]
[312614650,1706089765456,-2987.143945,0.00020195,2]
[312614651,1706089765478,-2987.143945,0.00020195,2]
[312614652,1706089765498,-2987.143945,0.00020195,2]
[312614653,1706089765518,-177.569411,0.00020205,2]
[312614654,1706089765538,-1473.93660923,0.00020733,2]
[312614655,1706089765558,-2987.143945,0.00020733,2]
[312614656,1706089765578,-2987.143945,0.00020733,2]
[312614657,1706089765598,-534.38837,0.00020898,2]
[312614658,1706089765618,-534.38837,0.00020898,2]
[312614659,1706089765649,-1445.19211502,0.00020898,2]
[312614684,1706089834008,-619.599095,0.00020082,2]
[312614685,1706089834018,-157.7467643,0.00020083,2]
[312614686,1706089834027,-166.9896716,0.00020093,2]
[312614687,1706089834036,-84.45274674,0.00020174,2]
[312614694,1706089834157,-274.84739144,0.00020174,2]
[312614791,1706089838603,-2456.70254064,0.00020174,2]
[312614792,1706089838619,-4112.6,0.00020175,3]
[312614793,1706089838630,-3427.17,0.00020175,3]
[312614794,1706089838643,-206.37698224,0.00020175,3]
[312614795,1706089838677,-2649.59301776,0.00020175,3]
[312614796,1706089838691,-1435.1832492,0.00020183,3]
[312614797,1706089838709,-2872.9767508,0.00020183,3]
[312614798,1706089838722,-4217.1,0.00020183,3]
[312614799,1706089838735,-7692.31417,0.00020185,2]
[312614800,1706089838748,-7692.31417,0.00020185,2]
[312614801,1706089838761,-7692.31417,0.00020185,2]
[312614802,1706089838775,-7692.31417,0.00020185,2]
[312614803,1706089838787,-2064.40392112,0.00020185,2]
[312614899,1706089841723,-5029.82723102,0.00020173,2]
[312614904,1706089841740,-180.35876908,0.00020173,2]
[312614909,1706089841752,-663.58338169,0.00020185,2]
[312614912,1706089841766,-4211.99191965,0.00020185,2]
[312614972,1706089843693,-752.33494754,0.00020185,2]
[312614974,1706089843704,-1743.89799271,0.00020185,2]
[312614976,1706089843718,-719.01670204,0.00020185,2]
[312615215,1706089898665,186.056781,0.0001919,2]
[312615216,1706089979291,686.53509995,0.0001919,2]
[312615230,1706090077542,533.094253,0.00019179,2]
[312615231,1706090126545,3388.39609016,0.000189,2]
[312615232,1706090703511,163.34436665,0.00019965,2]
[312615233,1706090728010,2258.93072677,0.000189,2]
[312615234,1706090831823,977.70118808,0.00019552,2]
[312615235,1706090835097,-161.07323855,0.00020058,2]
[312615236,1706090835118,-1429.17308572,0.00020058,2]
[312615237,1706090937610,245.724838,0.00019646,2]
[312615244,1706090952100,-303.54757009,0.00020049,2]
[312615245,1706090952120,-154.86062544,0.0002005,2]
[312615246,1706090952139,-5210.1860001,0.0002005,2]
[312615247,1706090952159,-619.599095,0.00020051,2]
[312615248,1706090952180,-154.86062544,0.00020051,2]
[312615249,1706090952200,-678.88445844,0.00020051,2]
[312615250,1706090952219,-161.07323855,0.00020052,2]
[312615251,1706090952239,-237.74153663,0.00020052,2]
[312615252,1706090952259,-2002.20651061,0.00020052,2]
[312615253,1706090952277,-21690.99033113,0.00020052,2]
[312615254,1706090952296,-2816.00267882,0.00020053,2]
[312615255,1706090952316,-2084.95173309,0.00020058,2]
[312615256,1706090952335,-155.36625494,0.00020193,2]
[312615257,1706090952356,-213.08146898,0.00020193,2]
[312615258,1706090952376,-223.55136797,0.00020194,2]
[312615259,1706090952396,-2417.2417052,0.00020194,2]
[312615260,1706090952415,-2669.9515149,0.00020194,2]
[312615261,1706090952434,-193.392739,0.00020195,2]
[312615262,1706090952455,-193.392739,0.00020195,2]
[312615263,1706090952476,-193.392739,0.00020195,2]
[312615264,1706090952495,-193.392739,0.00020195,2]
[312615265,1706090952514,-193.392739,0.00020195,2]
[312615266,1706090952538,-193.392739,0.00020195,2]
[312615267,1706090952558,-193.392739,0.00020195,2]
[312615268,1706090952579,-193.392739,0.00020195,2]
[312615269,1706090952600,-151.062777,0.00020195,2]
[312615270,1706090952622,-147.04425562,0.00020195,2]
[312615292,1706091038178,-1490.98375473,0.00020058,2]
[312615293,1706091038188,-3.95574438,0.00020195,2]
[312615294,1706091038197,-154.86062544,0.00020723,2]
[312615295,1706091038206,-5210.1860001,0.00020723,2]
[312615296,1706091038215,-237.74153663,0.00020724,2]
[312615297,1706091038224,-619.599095,0.00020724,2]
[312615298,1706091038234,-2485.5227666,0.00020724,2]
[312615299,1706091038246,-330.47991222,0.00020724,2]
[312615300,1706091038255,-498.83779859,0.00020725,2]
[312615588,1706091045864,-218.96863741,0.00020725,2]
[312615589,1706091045873,-18368.81040187,0.00021513,2]
[312615590,1706091045885,-166.9896716,0.0002163,2]
[312615591,1706091045894,-2124.42,0.00021716,3]
[312615592,1706091045904,-2303.42,0.00021716,3]
[312615593,1706091045914,-3316.93,0.0002172,3]
[312615594,1706091045923,-2764.11,0.0002172,3]
[312615595,1706091045932,-896.143183,0.00021724,2]
[312615596,1706091045941,-5682.040728,0.00021724,2]
[312615597,1706091045951,-5682.040728,0.00021724,2]
[312615598,1706091045960,-151.0,0.00021724,2]
[312615599,1706091045969,-896.143183,0.00021725,2]
[312615600,1706091045978,-5682.040728,0.00021725,2]
[312615601,1706091045988,-5682.040728,0.00021725,2]
[312615602,1706091045998,-151.0,0.00021725,2]
[312615603,1706091046007,-2097.54119829,0.00021725,2]
[312615604,1706091046017,-193.392739,0.00021726,2]
[312615605,1706091046028,-193.392739,0.00021726,2]
[312615606,1706091046036,-193.392739,0.00021726,2]
[312615607,1706091046046,-193.392739,0.00021726,2]
[312615608,1706091046055,-896.143183,0.00021726,2]
[312615609,1706091046065,-5682.040728,0.00021726,2]
[312615610,1706091046075,-1001.42758934,0.00021726,2]
[312615614,1706091185807,405.0,0.00029,30]
[312615615,1706091292131,170.79827,0.00019178,2]
[312615616,1706091329149,1505.95381785,0.00019625,2]
[312615617,1706091331163,620.84959992,0.00019178,2]
[312615618,1706091349176,432.74089796,0.00019178,2]
[312615619,1706091540898,989.01321,0.00019286,2]
[312615620,1706091548762,2977.5109836,0.00019128,2]
[312615621,1706091607666,154.86062544,0.00017215,2]
[312615622,1706091665917,32419.9722053,0.00019124,2]
[312615623,1706091931610,1003.9692119,0.00019625,2]
[312615624,1706091959872,154.86062544,0.00020061,4]